fUSD/lending_fUSD_20240116
["ID","MTS","AMOUNT","RATE_DAILY","PERIOD"]
[311747221,1705374660873,-500.0,0.00022713,2]
[311747222,1705374660883,-387.04697729,0.00022713,2]
[311747223,1705374660893,-500.0,0.00022713,2]
[311747224,1705374660904,-500.0,0.00022713,2]
[311747225,1705374660915,-606.69,0.00022713,2]
[311747226,1705374660925,-513.79,0.00022713,2]
[311747227,1705374660934,-1134.98,0.00022713,2]
[311747228,1705374660944,-693.98,0.00022713,2]
[311747229,1705374660954,-734.94,0.00022713,2]
[311747230,1705374660964,-915.17,0.00022713,2]
[311747231,1705374660975,-500.0,0.00022713,2]
[311747232,1705374660986,-597.51,0.00022713,2]
[311747233,1705374660996,-602.78,0.00022713,2]
[311747234,1705374661006,-745.04,0.00022713,2]
[311747235,1705374661017,-600.98,0.00022713,2]
[311747236,1705374661027,-500.0,0.00022713,2]
[311747237,1705374661038,-500.0,0.00022713,2]
[311747238,1705374661047,-680.2,0.00022713,2]
[311747239,1705374661059,-687.82,0.00022713,2]
[311747240,1705374661069,-731.62,0.00022713,2]
[311747241,1705374661079,-500.0,0.00022713,2]
[311747242,1705374661090,-500.0,0.00022713,2]
[311747243,1705374661101,-628.6,0.00022713,2]
[311747244,1705374661111,-500.0,0.00022713,2]
[311747245,1705374661121,-683.07,0.00022713,2]
[311747246,1705374661131,-500.0,0.00022713,2]
[311747247,1705374661141,-526.66424589,0.00022713,2]
[311747248,1705374661150,-925.2,0.00022713,2]
[311747249,1705374661160,-500.0,0.00022713,2]
[311747250,1705374661169,-500.0,0.00022713,2]
[311747251,1705374661179,-1084.62,0.00022713,2]
[311747252,1705374661189,-617.24,0.00022713,2]
[311747253,1705374661203,-593.53,0.00022713,2]
[311747254,1705374661214,-568.27,0.00022713,2]
[311747255,1705374661223,-907.93,0.00022713,2]
[311747256,1705374661233,-500.0,0.00022713,2]
[311747257,1705374661244,-500.0,0.00022713,2]
[311747258,1705374661254,-500.0,0.00022713,2]
[311747259,1705374661264,-977.11,0.00022713,2]
[311747260,1705374661275,-441.38660758,0.00022713,2]
[311747261,1705374661285,-646.51,0.00022713,2]
[311747262,1705374661295,-500.0,0.00022713,2]
[311747263,1705374661306,-500.0,0.00022713,2]
[311747264,1705374661316,-500.0,0.00022713,2]
[311747265,1705374661326,-1140.86,0.00022713,2]
[311747266,1705374661337,-1072.85,0.00022713,2]
[311747267,1705374661347,-637.63,0.00022713,2]
[311747268,1705374661357,-535.02,0.00022713,2]
[311747269,1705374661366,-705.18,0.00022713,2]
[311747270,1705374661376,-1044.31,0.00022713,2]
[311747271,1705374661386,-599.1,0.00022713,2]
[311747272,1705374661395,-500.0,0.00022713,2]
[311747273,1705374661405,-500.0,0.00022713,2]
[311747274,1705374661414,-731.35,0.00022713,2]
[311747275,1705374661424,-500.0,0.00022713,2]
[311747276,1705374661434,-500.0,0.00022713,2]
[311747277,1705374661444,-786.15,0.00022713,2]
[311747278,1705374661454,-817.54,0.00022713,2]
[311747279,1705374661464,-698.73,0.00022713,2]
[311747280,1705374661473,-500.0,0.00022713,2]
[311747281,1705374661483,-702.82,0.00022713,2]
[311747282,1705374661493,-500.0,0.00022713,2]
[311747283,1705374661503,-1031.39,0.00022713,2]
[311747284,1705374661513,-743.02,0.00022713,2]
[311747285,1705374661522,-524.54,0.00022713,2]
[311747286,1705374661532,-625.17,0.00022713,2]
[311747287,1705374661542,-943.13,0.00022713,2]
[311747288,1705374661552,-500.0,0.00022713,2]
[311747289,1705374661562,-648.6923115,0.00022713,2]
[311747290,1705374661572,-500.0,0.00022713,2]
[311747291,1705374661582,-646.33,0.00022713,2]
[311747292,1705374661592,-500.0,0.00022713,2]
[311747293,1705374661602,-559.45,0.00022713,2]
[311747294,1705374661612,-640.09,0.00022713,2]
[311747295,1705374661623,-583.07,0.00022713,2]
[311747296,1705374661632,-500.0,0.00022713,2]
[311747297,1705374661642,-500.0,0.00022713,2]
[311747298,1705374661652,-622.34,0.00022713,2]
[311747299,1705374661662,-500.0,0.00022713,2]
[311747300,1705374661672,-500.0,0.00022713,2]
[311747301,1705374661682,-500.0,0.00022713,2]
[311747302,1705374661691,-660.75,0.00022713,2]
[311747303,1705374661702,-791.03,0.00022713,2]
[311747304,1705374661713,-665.21,0.00022713,2]
[311747305,1705374661723,-679.36,0.00022713,2]
[311747306,1705374661733,-500.0,0.00022713,2]
[311747307,1705374661744,-1043.92,0.00022713,2]
[311747308,1705374661753,-500.0,0.00022713,2]
[311747309,1705374661763,-513.41,0.00022713,2]
[311747310,1705374661773,-1032.92,0.00022713,2]
[311747311,1705374661784,-500.0,0.00022713,2]
[311747312,1705374661794,-776.66,0.00022713,2]
[311747313,1705374661804,-500.0,0.00022713,2]
[311747314,1705374661814,-1120.34,0.00022713,2]
[311747315,1705374661824,-500.0,0.00022713,2]
[311747316,1705374661834,-500.0,0.00022713,2]
[311747317,1705374661844,-1529.34,0.00022713,2]
[311747318,1705374661854,-500.0,0.00022713,2]
[311747319,1705374661864,-660.31,0.00022713,2]
[311747320,1705374661875,-910.73,0.00022713,2]
[311747321,1705374661885,-500.0,0.00022713,2]
[311747322,1705374661895,-948.73,0.00022713,2]
[311747323,1705374661905,-527.61,0.00022713,2]
[311747324,1705374661915,-1145.85,0.00022713,2]
[311747325,1705374661926,-500.0,0.00022713,2]
[311747326,1705374661937,-500.0,0.00022713,2]
[311747327,1705374661948,-500.0,0.00022713,2]
[311747328,1705374661958,-500.0,0.00022713,2]
[311747329,1705374661968,-1028.57,0.00022713,2]
[311747330,1705374661978,-500.0,0.00022713,2]
[311747331,1705374661988,-500.0,0.00022713,2]
[311747332,1705374661997,-2736.81,0.00022713,2]
[311747333,1705374662008,-680.35,0.00022713,2]
[311747334,1705374662018,-738.04,0.00022713,2]
[311747335,1705374662027,-500.0,0.00022713,2]
[311747336,1705374662036,-583.06,0.00022713,2]
[311747337,1705374662046,-2846.26,0.00022713,2]
[311747338,1705374662056,-548.89,0.00022713,2]
[311747339,1705374662066,-764.53,0.00022713,2]
[311747340,1705374662076,-531.65,0.00022713,2]
[311747341,1705374662086,-500.0,0.00022713,2]
[311747342,1705374662097,-500.0,0.00022713,2]
[311747343,1705374662109,-500.0,0.00022713,2]
[311747344,1705374662119,-778.21,0.00022713,2]
[311747345,1705374662130,-579.26,0.00022713,2]
[311747346,1705374662140,-500.0,0.00022713,2]
[311747347,1705374662151,-500.0,0.00022713,2]
[311747348,1705374662162,-656.84,0.00022713,2]
[311747349,1705374662172,-500.0,0.00022713,2]
[311747350,1705374662182,-990.61,0.00022713,2]
[311747351,1705374662458,-500.0,0.00022713,2]
[311747352,1705374662517,-1268.31,0.00022713,2]
[311747353,1705374662527,-591.12,0.00022713,2]
[311747354,1705374662536,-500.0,0.00022713,2]
[311747355,1705374662546,-670.88,0.00022713,2]
[311747356,1705374662556,-723.6,0.00022713,2]
[311747357,1705374662566,-500.0,0.00022713,2]
[311747358,1705374662575,-500.0,0.00022713,2]
[311747359,1705374662585,-500.0,0.00022713,2]
[311747360,1705374662595,-726.98,0.00022713,2]
[311747361,1705374662605,-560.16,0.00022713,2]
[311747362,1705374662614,-586.17,0.00022713,2]
[311747363,1705374662624,-500.0,0.00022713,2]
[311747364,1705374662633,-500.0,0.00022713,2]
[311747365,1705374662643,-500.0,0.00022713,2]
[311747366,1705374662653,-1186.05,0.00022713,2]
[311747367,1705374662663,-500.0,0.00022713,2]
[311747368,1705374662673,-500.0,0.00022713,2]
[311747369,1705374662683,-613.84,0.00022713,2]
[311747370,1705374662692,-563.33,0.00022713,2]
[311747371,1705374662702,-913.01,0.00022713,2]
[311747372,1705374662712,-500.0,0.00022713,2]
[311747373,1705374662722,-761.42,0.00022713,2]
[311747374,1705374662732,-500.0,0.00022713,2]
[311747375,1705374662742,-1270.17,0.00022713,2]
[311747376,1705374662752,-500.0,0.00022713,2]
[311747377,1705374662761,-596.91,0.00022713,2]
[311747378,1705374662771,-500.0,0.00022713,2]
[311747379,1705374662781,-500.0,0.00022713,2]
[311747380,1705374662790,-500.0,0.00022713,2]
[311747381,1705374662800,-500.0,0.00022713,2]
[311747382,1705374662810,-598.57,0.00022713,2]
[311747383,1705374662819,-500.0,0.00022713,2]
[311747384,1705374662829,-500.0,0.00022713,2]
[311747385,1705374662839,-166.00181629,0.00022713,2]
[311747386,1705374662849,-500.0,0.00022713,2]
[311747387,1705374662859,-722.3,0.00022719,2]
[311747388,1705374662869,-863.98,0.00022719,2]
[311747389,1705374662881,-300.0,0.00022719,2]
[311747390,1705374662890,-539.28,0.0002272,2]
[311747391,1705374662900,-500.0,0.0002272,2]
[311747392,1705374662910,-941.75,0.0002272,2]
[311747393,1705374662920,-500.0,0.0002272,2]
[311747394,1705374662930,-500.0,0.0002272,2]
[311747395,1705374662939,-661.13,0.0002272,2]
[311747396,1705374662948,-500.0,0.0002272,2]
[311747397,1705374662958,-644.37,0.0002272,2]
[311747398,1705374662969,-200000.0,0.0002272,2]
[311747399,1705374662978,-154.77,0.00022734,2]
[311747400,1705374662989,-196.99,0.00022743,2]
[311747401,1705374662999,-23784.81759262,0.0002275,2]
[311747402,1705374663010,-153.0,0.00022766,2]
[311747403,1705374663020,-153.0,0.00022766,2]
[311747404,1705374663031,-153.0,0.00022766,2]
[311747405,1705374663040,-153.0,0.00022766,2]
[311747406,1705374663051,-153.0,0.00022766,2]
[311747407,1705374663061,-405.27605707,0.0002278,2]
[311747408,1705374663070,-200.0,0.00022816,2]
[311747409,1705374663079,-23784.81759262,0.00022825,2]
[311747410,1705374663089,-500.0,0.00022843,2]
[311747411,1705374663099,-196.99,0.00022855,2]
[311747412,1705374663108,-500.0,0.00022874,2]
[311747413,1705374663117,-154.77,0.00022875,2]
[311747414,1705374663128,-500.0,0.00022882,2]
[311747415,1705374663138,-500.0,0.00022891,2]
[311747416,1705374663149,-500.0,0.000229,2]
[311747417,1705374663159,-23784.81759262,0.000229,2]
[311747418,1705374663169,-405.27605707,0.000229,2]
[311747419,1705374663178,-196.99,0.00022967,2]
[311747420,1705374663188,-2777.1,0.0002298,2]
[311747421,1705374663199,-675.13,0.0002298,2]
[311747422,1705374663211,-971.91,0.0002298,2]
[311747423,1705374663221,-600.55,0.0002298,2]
[311747424,1705374663230,-4753.34,0.0002298,2]
[311747425,1705374663241,-1300.49,0.0002298,2]
[311747426,1705374663251,-1610.9,0.0002298,2]
[311747427,1705374663261,-826.67,0.0002298,2]
[311747428,1705374663272,-759.23,0.0002298,2]
[311747429,1705374663283,-1472.66,0.0002298,2]
[311747430,1705374663294,-1896.81,0.0002298,2]
[311747431,1705374663306,-580.88,0.0002298,2]
[311747432,1705374663315,-834.97,0.0002298,2]
[311747433,1705374663327,-500.0,0.0002298,5]
[311747434,1705374663337,-3571.95,0.0002298,2]
[311747435,1705374663348,-1736.05,0.0002298,2]
[311747436,1705374663359,-737.59,0.0002298,2]
[311747437,1705374663370,-2762.84,0.0002298,2]
[311747438,1705374663380,-19363.98,0.0002298,2]
[311747439,1705374663391,-500.0,0.0002298,2]
[311747440,1705374663404,-500.0,0.0002298,2]
[311747441,1705374663415,-1430.63,0.0002298,2]
[311747442,1705374663427,-1553.73,0.0002298,2]
[311747443,1705374663438,-7142.4,0.0002298,2]
[311747444,1705374663450,-500.0,0.0002298,2]
[311747445,1705374663460,-950.86,0.0002298,2]
[311747446,1705374663470,-11074.17,0.0002298,2]
[311747447,1705374663480,-667.18,0.0002298,2]
[311747448,1705374663489,-984.76,0.0002298,2]
[311747449,1705374663499,-579.17,0.0002298,2]
[311747450,1705374663508,-1020.16,0.0002298,2]
[311747451,1705374663517,-2523.6,0.0002298,2]
[311747452,1705374663527,-1258.9,0.0002298,2]
[311747453,1705374663536,-1809.85,0.0002298,2]
[311747454,1705374663546,-1664.86,0.0002298,2]
[311747455,1705374663557,-11478.92,0.0002298,2]
[311747456,1705374663566,-566.87,0.0002298,2]
[311747457,1705374663575,-1439.81,0.0002298,2]
[311747458,1705374663585,-1101.88,0.0002298,2]
[311747459,1705374663594,-1125.23,0.0002298,2]
[311747460,1705374663604,-684.93,0.0002298,2]
[311747461,1705374663613,-1163.66,0.0002298,2]
[311747462,1705374663623,-875.72,0.0002298,2]
[311747463,1705374663632,-500.0,0.0002298,2]
[311747464,1705374663641,-1333.46,0.0002298,2]
[311747465,1705374663651,-6259.22,0.0002298,2]
[311747466,1705374663660,-825.96,0.0002298,2]
[311747467,1705374663670,-1197.15,0.0002298,2]
[311747468,1705374663680,-1811.38,0.0002298,2]
[311747469,1705374663690,-623.64,0.0002298,2]
[311747470,1705374663699,-500.0,0.00022982,2]
[311747471,1705374663709,-745.86,0.00022982,2]
[311747472,1705374663718,-500.0,0.00022982,2]
[311747473,1705374663729,-590.19,0.00022982,2]
[311747474,1705374663739,-500.0,0.00022982,2]
[311747475,1705374663749,-930.05,0.00022982,2]
[311747476,1705374663758,-500.0,0.00022982,2]
[311747477,1705374663768,-791.41,0.00022982,2]
[311747478,1705374663778,-500.0,0.00022982,2]
[311747479,1705374663787,-502.89,0.00022982,2]
[311747480,1705374663797,-500.0,0.00022982,2]
[311747481,1705374663806,-582.41,0.00022982,2]
[311747482,1705374663816,-500.0,0.00022982,2]
[311747483,1705374663826,-500.0,0.00022982,2]
[311747484,1705374663835,-605.41,0.00022982,2]
[311747485,1705374663845,-841.87,0.00022982,2]
[311747486,1705374663855,-557.3,0.00022982,2]
[311747487,1705374663864,-528.34,0.00022982,2]
[311747488,1705374663874,-500.0,0.00022982,2]
[311747489,1705374663884,-500.0,0.00022982,2]
[311747490,1705374663893,-500.0,0.00022982,2]
[311747491,1705374663903,-500.0,0.00022982,2]
[311747492,1705374663912,-538.56,0.00022982,2]
[311747493,1705374663921,-594.73,0.00022982,2]
[311747494,1705374663930,-500.0,0.00022982,2]
[311747495,1705374663939,-624.14,0.00022982,2]
[311747496,1705374663948,-500.0,0.00022982,2]
[311747497,1705374663958,-577.61,0.00022982,2]
[311747498,1705374663968,-500.0,0.00022982,2]
[311747499,1705374663977,-500.0,0.00022982,2]
[311747500,1705374663987,-500.0,0.00022982,2]
[311747501,1705374663997,-345.41880371,0.00022982,2]
[311747502,1705374664006,-500.0,0.00022982,2]
[311747503,1705374664016,-628.57,0.00022982,2]
[311747504,1705374664025,-537.83,0.00022982,2]
[311747505,1705374664034,-259.2894188,0.00022982,2]
[311747506,1705374664044,-500.0,0.00022982,2]
[311747507,1705374664053,-692.1,0.00022982,2]
[311747508,1705374664063,-625.21,0.00022982,2]
[311747509,1705374664073,-500.0,0.00022982,2]
[311747510,1705374664082,-784.14,0.00022982,2]
[311747511,1705374664091,-500.0,0.00022982,2]
[311747512,1705374664100,-605.61,0.00022982,2]
[311747513,1705374664109,-521.86,0.00022982,2]
[311747514,1705374664118,-540.27,0.00022982,2]
[311747515,1705374664128,-579.95,0.00022982,2]
[311747516,1705374664137,-500.0,0.00022982,2]
[311747517,1705374664146,-500.0,0.00022982,2]
[311747518,1705374664156,-642.48,0.00022982,2]
[311747519,1705374664166,-500.0,0.00022982,2]
[311747520,1705374664176,-500.0,0.00022982,2]
[311747521,1705374664187,-500.0,0.00022982,2]
[311747522,1705374664197,-500.0,0.00022982,2]
[311747523,1705374664207,-652.41,0.00022982,2]
[311747524,1705374664217,-208.8,0.00022982,2]
[311747525,1705374664226,-567.7,0.00022982,2]
[311747526,1705374664236,-641.65,0.00022982,2]
[311747527,1705374664245,-766.07,0.00022982,2]
[311747528,1705374664255,-500.0,0.00022982,2]
[311747529,1705374664265,-500.0,0.00022982,2]
[311747530,1705374664275,-500.0,0.00022982,2]
[311747531,1705374664286,-500.0,0.00022982,2]
[311747532,1705374664296,-500.0,0.00022983,2]
[311747533,1705374664305,-701.19,0.00022983,2]
[311747534,1705374664315,-1424.45,0.00022983,2]
[311747535,1705374664324,-500.0,0.00022984,2]
[311747536,1705374664336,-500.0,0.00022984,2]
[311747537,1705374664347,-647.36,0.00022984,2]
[311747538,1705374664357,-500.0,0.00022984,2]
[311747539,1705374664366,-500.0,0.00022984,2]
[311747540,1705374664376,-500.0,0.00022984,2]
[311747541,1705374664385,-583.78,0.00022984,2]
[311747542,1705374664395,-500.0,0.00022984,2]
[311747543,1705374664404,-636.91,0.00022984,2]
[311747544,1705374664414,-500.0,0.00022984,2]
[311747545,1705374664424,-500.0,0.00022984,2]
[311747546,1705374664435,-500.0,0.00022984,2]
[311747547,1705374664445,-500.0,0.00022984,2]
[311747548,1705374664454,-500.0,0.00022984,2]
[311747549,1705374664465,-500.0,0.00022984,2]
[311747550,1705374664474,-500.0,0.00022984,2]
[311747551,1705374664483,-500.0,0.00022984,2]
[311747552,1705374664493,-500.0,0.00022984,2]
[311747553,1705374664502,-500.0,0.00022984,2]
[311747554,1705374664511,-737.6,0.00022984,2]
[311747555,1705374664522,-500.0,0.00022984,2]
[311747556,1705374664533,-500.0,0.00022984,2]
[311747557,1705374664543,-500.0,0.00022984,2]
[311747558,1705374664553,-646.27,0.00022984,2]
[311747559,1705374664563,-500.0,0.00022984,2]
[311747560,1705374664573,-500.0,0.00022984,2]
[311747561,1705374664583,-906.04,0.00022984,2]
[311747562,1705374664593,-591.5,0.00022984,2]
[311747563,1705374664602,-500.0,0.00022984,2]
[311747564,1705374664612,-635.82,0.00022984,2]
[311747565,1705374664622,-500.0,0.00022984,2]
[311747566,1705374664631,-500.0,0.00022984,2]
[311747567,1705374664641,-500.0,0.00022984,2]
[311747568,1705374664651,-500.0,0.00022984,2]
[311747569,1705374664662,-500.0,0.00022984,2]
[311747570,1705374664671,-500.0,0.00022984,2]
[311747571,1705374664681,-518.0,0.00022984,2]
[311747572,1705374664691,-1087.14,0.00022984,2]
[311747573,1705374664701,-575.01,0.00022984,2]
[311747574,1705374664711,-500.0,0.00022984,2]
[311747575,1705374664720,-500.0,0.00022984,2]
[311747576,1705374664730,-704.21,0.00022984,2]
[311747577,1705374664739,-500.0,0.00022984,2]
[311747578,1705374664748,-668.39,0.00022984,2]
[311747579,1705374664757,-574.45,0.00022984,2]
[311747580,1705374664767,-500.0,0.00022984,2]
[311747581,1705374664776,-500.0,0.00022984,2]
[311747582,1705374664786,-500.0,0.00022984,2]
[311747583,1705374664795,-500.0,0.00022984,2]
[311747584,1705374664804,-500.0,0.00022984,2]
[311747585,1705374664814,-500.0,0.00022984,2]
[311747586,1705374664824,-543.53,0.00022984,2]
[311747587,1705374664833,-500.0,0.00022984,2]
[311747588,1705374664843,-500.0,0.00022984,2]
[311747589,1705374664853,-500.0,0.00022984,2]
[311747590,1705374664862,-584.38,0.00022984,2]
[311747591,1705374664872,-500.0,0.00022984,2]
[311747592,1705374664880,-514.54,0.00022984,2]
[311747593,1705374664982,-500.0,0.00022984,2]
[311747594,1705374664991,-2185.13,0.00022984,2]
[311747595,1705374665001,-500.0,0.00022984,2]
[311747596,1705374665010,-500.0,0.00022984,2]
[311747597,1705374665019,-500.0,0.00022984,2]
[311747598,1705374665028,-3020.1,0.00022984,2]
[311747599,1705374665038,-505.73,0.00022984,2]
[311747600,1705374665048,-500.0,0.00022984,2]
[311747601,1705374665058,-500.0,0.00022984,2]
[311747602,1705374665067,-7944.83,0.00022984,2]
[311747603,1705374665076,-2819.84,0.00022984,2]
[311747604,1705374665086,-564.92,0.00022984,2]
[311747605,1705374665095,-374.04956088,0.00022984,2]
[311747606,1705374665104,-500.0,0.00022984,2]
[311747607,1705374665114,-500.0,0.00022984,2]
[311747608,1705374665124,-500.0,0.00022984,2]
[311747609,1705374665133,-571.16,0.00022984,2]
[311747610,1705374665143,-2167.37,0.00022984,2]
[311747611,1705374665152,-500.0,0.00022984,2]
[311747612,1705374665162,-528.05,0.00022984,2]
[311747613,1705374665172,-500.0,0.00022984,2]
[311747614,1705374665181,-1375.65,0.00022984,2]
[311747615,1705374665191,-500.0,0.00022984,2]
[311747616,1705374665201,-500.0,0.00022984,2]
[311747617,1705374665214,-500.0,0.00022984,2]
[311747618,1705374665224,-592.6,0.00022984,2]
[311747619,1705374665233,-506.26,0.00022984,2]
[311747620,1705374665243,-500.0,0.00022984,2]
[311747621,1705374665252,-500.0,0.00022984,2]
[311747622,1705374665261,-500.0,0.00022984,2]
[311747623,1705374665271,-500.0,0.00022984,2]
[311747624,1705374665281,-500.0,0.00022984,2]
[311747625,1705374665290,-631.8,0.00022984,2]
[311747626,1705374665299,-500.0,0.00022984,2]
[311747627,1705374665309,-500.0,0.00022984,2]
[311747628,1705374665319,-500.0,0.00022984,2]
[311747629,1705374665328,-500.0,0.00022984,2]
[311747630,1705374665337,-500.0,0.00022984,2]
[311747631,1705374665347,-500.0,0.00022984,2]
[311747632,1705374665356,-638.92,0.00022984,2]
[311747633,1705374665366,-533.47,0.00022984,2]
[311747634,1705374665375,-500.0,0.00022984,2]
[311747635,1705374665385,-1418.77,0.00022984,2]
[311747636,1705374665394,-500.0,0.00022984,2]
[311747637,1705374665404,-500.0,0.00022984,2]
[311747638,1705374665413,-630.63,0.00022984,2]
[311747639,1705374665423,-1160.98,0.00022984,2]
[311747640,1705374665433,-500.0,0.00022984,2]
[311747641,1705374665442,-500.0,0.00022984,2]
[311747642,1705374665451,-1096.97,0.00022984,2]
[311747643,1705374665461,-500.0,0.00022984,2]
[311747644,1705374665470,-561.86,0.00022984,2]
[311747645,1705374665481,-708.19,0.00022984,2]
[311747646,1705374665490,-591.37,0.00022984,2]
[311747647,1705374665500,-500.0,0.00022984,2]
[311747648,1705374665510,-1376.7,0.00022984,2]
[311747649,1705374665520,-288.99561419,0.00022984,2]
[311747650,1705374665529,-527.71,0.00022984,2]
[311747651,1705374665539,-3369.29,0.00022984,2]
[311747652,1705374665548,-1080.58,0.00022984,2]
[311747653,1705374665559,-510.69,0.00022984,2]
[311747654,1705374665568,-500.0,0.00022984,2]
[311747655,1705374665578,-513.99,0.00022984,2]
[311747656,1705374665587,-3796.8,0.00022984,2]
[311747657,1705374665597,-500.0,0.00022984,2]
[311747658,1705374665607,-2689.4,0.00022984,2]
[311747659,1705374665617,-4033.23,0.00022984,2]
[311747660,1705374665626,-774.46,0.00022984,2]
[311747661,1705374665636,-500.0,0.00022984,2]
[311747662,1705374665645,-1843.49,0.00022984,2]
[311747663,1705374665654,-494.51390555,0.00022984,2]
[311747664,1705374665665,-500.0,0.00022984,2]
[311747665,1705374665674,-588.39,0.00022984,2]
[311747666,1705374665684,-500.0,0.00022984,2]
[311747667,1705374665694,-500.0,0.00022984,2]
[311747668,1705374665705,-1324.33,0.00022984,2]
[311747669,1705374665715,-500.0,0.00022984,2]
[311747670,1705374665724,-592.9,0.00022984,2]
[311747671,1705374665734,-2252.27,0.00022984,2]
[311747672,1705374665744,-500.0,0.00022984,2]
[311747673,1705374665753,-500.0,0.00022984,2]
[311747674,1705374665763,-509.95,0.00022984,2]
[311747675,1705374665773,-500.0,0.00022984,2]
[311747676,1705374665782,-1830.09,0.00022984,2]
[311747677,1705374665792,-1552.0,0.00022984,2]
[311747678,1705374665801,-500.0,0.00022984,2]
[311747679,1705374665811,-500.0,0.00022984,2]
[311747680,1705374665820,-772.32,0.00022984,2]
[311747681,1705374665829,-500.0,0.00022984,2]
[311747682,1705374665838,-1072.84,0.00022984,2]
[311747683,1705374665847,-601.53,0.00022984,2]
[311747684,1705374665856,-602.16,0.00022984,2]
[311747685,1705374665866,-513.25,0.00022984,2]
[311747686,1705374665876,-500.0,0.00022984,2]
[311747687,1705374665886,-1041.6,0.00022984,2]
[311747688,1705374665895,-3842.34,0.00022984,2]
[311747689,1705374665905,-500.0,0.00022984,2]
[311747690,1705374665914,-207.330132,0.00022984,7]
[311747691,1705374665924,-151.0,0.00022984,7]
[311747692,1705374665934,-151.0,0.00022984,7]
[311747693,1705374665943,-151.0,0.00022984,7]
[311747694,1705374665954,-151.0,0.00022985,7]
[311747695,1705374665964,-936.92,0.00022985,2]
[311747696,1705374665973,-1169.85,0.00022985,2]
[311747697,1705374665983,-994.08,0.00022985,2]
[311747698,1705374665992,-906.71,0.00022985,2]
[311747699,1705374666002,-500.0,0.00022985,2]
[311747700,1705374666012,-2886.73,0.00022985,2]
[311747701,1705374666022,-838.93,0.00022985,2]
[311747702,1705374666031,-525.69,0.00022985,2]
[311747703,1705374666041,-623.96,0.00022985,2]
[311747704,1705374666051,-500.0,0.00022985,2]
[311747705,1705374666061,-592.54,0.00022985,2]
[311747706,1705374666072,-2261.94,0.00022985,2]
[311747707,1705374666082,-500.0,0.00022985,2]
[311747708,1705374666092,-549.6,0.00022985,2]
[311747709,1705374666102,-500.0,0.00022985,2]
[311747710,1705374666112,-1417.87,0.00022985,2]
[311747711,1705374666122,-763.75,0.00022985,2]
[311747712,1705374666132,-962.62,0.00022985,2]
[311747713,1705374666141,-670.48,0.00022985,2]
[311747714,1705374666152,-640.17,0.00022985,2]
[311747715,1705374666162,-1102.28,0.00022985,2]
[311747716,1705374666171,-500.0,0.00022985,2]
[311747717,1705374666182,-941.86,0.00022985,2]
[311747718,1705374666192,-500.0,0.00022985,2]
[311747719,1705374666202,-500.0,0.00022985,2]
[311747720,1705374666211,-500.0,0.00022985,2]